[Event "Titled Tuesday Blitz April 18 Early 2023"]
[White "Birkisson, Bardur Orn"]
[Black "lluiss"]
[WhiteFideId "2310597"]
[WhiteElo "2062"]
[BlackElo "2280"]
[Result "0-1"]
[Round "10"]
[TimeControl "180+2"]
[Date "2023.04.18"]
[WhiteClock "0:00:16"]
[BlackClock "0:00:06"]

1. c4 {[%clk 0:03:00]}  Nf6 {[%clk 0:02:59]} 2. Nc3 {[%clk 0:03:00]}  d5 {[%clk 0:02:59]} 3. cxd5 {[%clk 0:02:58]}  Nxd5 {[%clk 0:03:00]} 4. g3 {[%clk 0:02:55]}  e5 {[%clk 0:02:58]} 5. Bg2 {[%clk 0:02:54]}  Nb6 {[%clk 0:02:58]} 6. Nf3 {[%clk 0:02:52]}  Nc6 {[%clk 0:02:57]} 7. O-O {[%clk 0:02:52]}  Be7 {[%clk 0:02:56]} 8. d3 {[%clk 0:02:52]}  O-O {[%clk 0:02:56]} 9. a3 {[%clk 0:02:51]}  Be6 {[%clk 0:02:55]} 10. b4 {[%clk 0:02:46]}  Nd4 {[%clk 0:02:50]} 11. Nd2 {[%clk 0:02:45]}  Nd5 {[%clk 0:02:45]} 12. Bb2 {[%clk 0:02:21]}  f6 {[%clk 0:02:41]} 13. Nce4 {[%clk 0:02:02]}  a5 {[%clk 0:02:09]} 14. Nc5 {[%clk 0:01:56]}  Bxc5 {[%clk 0:02:02]} 15. bxc5 {[%clk 0:01:56]}  a4 {[%clk 0:01:41]} 16. e3 {[%clk 0:01:45]}  Nc6 {[%clk 0:01:33]} 17. Rb1 {[%clk 0:01:36]}  Nde7 {[%clk 0:01:31]} 18. Qc2 {[%clk 0:01:33]}  Qd7 {[%clk 0:01:30]} 19. Ba1 {[%clk 0:01:10]}  Ra7 {[%clk 0:01:25]} 20. Rfd1 {[%clk 0:01:09]}  Rd8 {[%clk 0:01:24]} 21. Ne4 {[%clk 0:01:01]}  Bb3 {[%clk 0:01:23]} 22. Qe2 {[%clk 0:00:42]}  Bxd1 {[%clk 0:01:20]} 23. Rxd1 {[%clk 0:00:42]}  Na5 {[%clk 0:01:05]} 24. Qh5 {[%clk 0:00:26]}  Qf5 {[%clk 0:00:54]} 25. Qe2 {[%clk 0:00:24]}  Nb3 {[%clk 0:00:53]} 26. Bc3 {[%clk 0:00:22]}  Nd5 {[%clk 0:00:49]} 27. Bb2 {[%clk 0:00:23]}  Qg6 {[%clk 0:00:35]} 28. Qc2 {[%clk 0:00:19]}  Ra6 {[%clk 0:00:32]} 29. Qc4 {[%clk 0:00:19]}  Qf7 {[%clk 0:00:31]} 30. Qc2 {[%clk 0:00:17]}  Ne7 {[%clk 0:00:22]} 31. h4 {[%clk 0:00:12]}  b6 {[%clk 0:00:17]} 32. cxb6 {[%clk 0:00:10]}  cxb6 {[%clk 0:00:17]} 33. Qc7 {[%clk 0:00:08]}  Rda8 {[%clk 0:00:12]} 34. d4 {[%clk 0:00:07]}  Ng6 {[%clk 0:00:09]} 35. Qc3 {[%clk 0:00:05]}  Qd7 {[%clk 0:00:06]} 36. Bf3 {[%clk 0:00:03]}  Rc8 {[%clk 0:00:06]} 37. Qe1 {[%clk 0:00:03]}  Qc7 {[%clk 0:00:05]} 38. dxe5 {[%clk 0:00:03]}  Nxe5 {[%clk 0:00:05]} 39. Bg2 {[%clk 0:00:03]}  Nc4 {[%clk 0:00:04]} 40. h5 {[%clk 0:00:02]}  Nxb2 {[%clk 0:00:04]} 41. Rd4 {[%clk 0:00:01]}  Nxd4 {[%clk 0:00:03]} 42. exd4 {[%clk 0:00:02]}  Qc1 {[%clk 0:00:03]} 43. Kf1 {[%clk 0:00:03]}  Qxe1+ {[%clk 0:00:02]} 44. Kxe1 {[%clk 0:00:04]}  Rc1+ {[%clk 0:00:02]} 45. Kd2 {[%clk 0:00:04]}  Rc8 {[%clk 0:00:03]} 46. Nd6 {[%clk 0:00:04]}  Rd8 {[%clk 0:00:03]} 47. Nf5 {[%clk 0:00:04]}  Rf8 {[%clk 0:00:03]} 48. Bd5+ {[%clk 0:00:03]}  Kh8 {[%clk 0:00:03]} 49. Kc3 {[%clk 0:00:04]}  Rd8 {[%clk 0:00:04]} 50. Be6 {[%clk 0:00:03]}  Nd1+ {[%clk 0:00:02]} 51. Kd2 {[%clk 0:00:03]}  Nxf2 {[%clk 0:00:03]} 52. Ke3 {[%clk 0:00:03]}  Rda8 {[%clk 0:00:04]} 53. Kxf2 {[%clk 0:00:03]}  b5 {[%clk 0:00:04]} 54. d5 {[%clk 0:00:03]}  b4 {[%clk 0:00:05]} 55. axb4 {[%clk 0:00:03]}  a3 {[%clk 0:00:05]} 56. d6 {[%clk 0:00:03]}  a2 {[%clk 0:00:05]} 57. Bxa2 {[%clk 0:00:04]}  Rxa2+ {[%clk 0:00:05]} 58. Kf3 {[%clk 0:00:05]}  Rd2 {[%clk 0:00:05]} 59. Ke3 {[%clk 0:00:05]}  Rxd6 {[%clk 0:00:05]} 60. Nxd6 {[%clk 0:00:06]}  Rb8 {[%clk 0:00:05]} 61. Kf3 {[%clk 0:00:04]}  Rxb4 {[%clk 0:00:04]} 62. Nf5 {[%clk 0:00:04]}  Rb3+ {[%clk 0:00:05]} 63. Ne3 {[%clk 0:00:05]}  Rb7 {[%clk 0:00:05]} 64. Kf4 {[%clk 0:00:05]}  Kg8 {[%clk 0:00:05]} 65. g4 {[%clk 0:00:06]}  Kf7 {[%clk 0:00:05]} 66. Nf5 {[%clk 0:00:06]}  Rb4+ {[%clk 0:00:06]} 67. Kf3 {[%clk 0:00:06]}  Rb3+ {[%clk 0:00:06]} 68. Kf4 {[%clk 0:00:06]}  Rb4+ {[%clk 0:00:06]} 69. Kf3 {[%clk 0:00:06]}  Ra4 {[%clk 0:00:07]} 70. Ne3 {[%clk 0:00:06]}  Kg8 {[%clk 0:00:06]} 71. Nf5 {[%clk 0:00:06]}  Ra3+ {[%clk 0:00:06]} 72. Kf4 {[%clk 0:00:07]}  Kf7 {[%clk 0:00:07]} 73. Ne3 {[%clk 0:00:06]}  Ra4+ {[%clk 0:00:07]} 74. Kf3 {[%clk 0:00:07]}  Ra3 {[%clk 0:00:07]} 75. Kf4 {[%clk 0:00:07]}  Rd3 {[%clk 0:00:07]} 76. Nf5 {[%clk 0:00:07]}  Rd1 {[%clk 0:00:06]} 77. Kf3 {[%clk 0:00:08]}  Rf1+ {[%clk 0:00:06]} 78. Ke4 {[%clk 0:00:08]}  Rg1 {[%clk 0:00:06]} 79. Kf3 {[%clk 0:00:08]}  g6 {[%clk 0:00:06]} 80. hxg6+ {[%clk 0:00:06]}  hxg6 {[%clk 0:00:06]} 81. Ng3 {[%clk 0:00:06]}  Rxg3+ {[%clk 0:00:06]} 82. Kxg3 {[%clk 0:00:07]}  g5 {[%clk 0:00:06]} 83. Kf3 {[%clk 0:00:07]}  Ke6 {[%clk 0:00:06]} 84. Ke4 {[%clk 0:00:07]}  Ke7 {[%clk 0:00:06]} 85. Ke3 {[%clk 0:00:07]}  Kd7 {[%clk 0:00:05]} 86. Kd3 {[%clk 0:00:08]}  Kd6 {[%clk 0:00:05]} 87. Kd4 {[%clk 0:00:08]}  Ke6 {[%clk 0:00:04]} 88. Ke4 {[%clk 0:00:09]}  Kf7 {[%clk 0:00:04]} 89. Kf3 {[%clk 0:00:08]}  Kg6 {[%clk 0:00:04]} 90. Ke4 {[%clk 0:00:06]}  Kg7 {[%clk 0:00:04]} 91. Ke3 {[%clk 0:00:07]}  Kf8 {[%clk 0:00:04]} 92. Ke4 {[%clk 0:00:04]}  Ke8 {[%clk 0:00:04]} 93. Kf5 {[%clk 0:00:04]}  Kf7 {[%clk 0:00:04]} 94. Ke4 {[%clk 0:00:05]}  Ke6 {[%clk 0:00:04]} 95. Kd4 {[%clk 0:00:05]}  f5 {[%clk 0:00:03]} 96. gxf5+ {[%clk 0:00:06]}  Kxf5 {[%clk 0:00:04]} 97. Ke3 {[%clk 0:00:07]}  Kg4 {[%clk 0:00:04]} 98. Kf2 {[%clk 0:00:08]}  Kh3 {[%clk 0:00:04]} 99. Kg1 {[%clk 0:00:08]}  Kg3 {[%clk 0:00:05]} 100. Kf1 {[%clk 0:00:09]}  Kf3 {[%clk 0:00:05]} 101. Kg1 {[%clk 0:00:09]}  g4 {[%clk 0:00:05]} 102. Kf1 {[%clk 0:00:10]}  g3 {[%clk 0:00:04]} 103. Kg1 {[%clk 0:00:11]}  g2 {[%clk 0:00:04]} 104. Kh2 {[%clk 0:00:11]}  Kf2 {[%clk 0:00:04]} 105. Kh3 {[%clk 0:00:12]}  g1=Q {[%clk 0:00:05]} 106. Kh4 {[%clk 0:00:13]}  Kf3 {[%clk 0:00:05]} 107. Kh5 {[%clk 0:00:14]}  Kf4 {[%clk 0:00:06]} 108. Kh6 {[%clk 0:00:15]}  Kf5 {[%clk 0:00:06]} 109. Kh7 {[%clk 0:00:15]}  Kf6 {[%clk 0:00:07]} 110. Kh8 {[%clk 0:00:16]}  Qg7# {[%clk 0:00:06]} 0-1


[Site "https://www.chess.com"]

[Event "Titled Tuesday Blitz April 18 Early 2023"]
[White "Gonzalez, Francisco Silva"]
[Black "Thomas, Anysia"]
[WhiteFideId "1512285"]
[BlackFideId "670472"]
[WhiteElo "2074"]
[BlackElo "2091"]
[Result "1/2-1/2"]
[Round "10"]
[TimeControl "180+2"]
[Date "2023.04.18"]
[WhiteClock "0:01:34"]
[BlackClock "0:00:16"]

1. d4 {[%clk 0:02:54]}  Nf6 {[%clk 0:02:59]} 2. c4 {[%clk 0:02:54]}  g6 {[%clk 0:03:00]} 3. Nc3 {[%clk 0:02:54]}  d5 {[%clk 0:03:00]} 4. Bf4 {[%clk 0:02:51]}  Bg7 {[%clk 0:02:55]} 5. Nf3 {[%clk 0:02:52]}  O-O {[%clk 0:02:54]} 6. e3 {[%clk 0:02:52]}  c5 {[%clk 0:02:54]} 7. dxc5 {[%clk 0:02:53]}  Qa5 {[%clk 0:02:54]} 8. Rc1 {[%clk 0:02:52]}  dxc4 {[%clk 0:02:54]} 9. Bxc4 {[%clk 0:02:51]}  Qxc5 {[%clk 0:02:54]} 10. Bb3 {[%clk 0:02:52]}  Nc6 {[%clk 0:02:54]} 11. O-O {[%clk 0:02:52]}  Qa5 {[%clk 0:02:50]} 12. Qe2 {[%clk 0:02:52]}  Bg4 {[%clk 0:02:36]} 13. h3 {[%clk 0:02:51]}  e5 {[%clk 0:02:13]} 14. Bg3 {[%clk 0:02:45]}  Bh5 {[%clk 0:02:10]} 15. Qb5 {[%clk 0:02:35]}  Bxf3 {[%clk 0:02:01]} 16. gxf3 {[%clk 0:02:34]}  Qxb5 {[%clk 0:01:29]} 17. Nxb5 {[%clk 0:02:32]}  Nh5 {[%clk 0:01:20]} 18. Nd6 {[%clk 0:02:26]}  Na5 {[%clk 0:01:13]} 19. Rc7 {[%clk 0:02:21]}  Nxb3 {[%clk 0:01:09]} 20. axb3 {[%clk 0:02:19]}  Nxg3 {[%clk 0:01:05]} 21. fxg3 {[%clk 0:02:18]}  Rad8 {[%clk 0:01:05]} 22. Nxb7 {[%clk 0:02:16]}  Rd2 {[%clk 0:00:57]} 23. Rf2 {[%clk 0:02:15]}  Rd3 {[%clk 0:00:55]} 24. Nc5 {[%clk 0:02:11]}  Rxe3 {[%clk 0:00:48]} 25. Rxa7 {[%clk 0:02:11]}  e4 {[%clk 0:00:47]} 26. b4 {[%clk 0:02:09]}  exf3 {[%clk 0:00:42]} 27. Ra3 {[%clk 0:02:09]}  Bd4 {[%clk 0:00:37]} 28. Kf1 {[%clk 0:01:58]}  Rb8 {[%clk 0:00:16]} 29. Rxf3 {[%clk 0:01:56]}  Rxf3+ {[%clk 0:00:14]} 30. Rxf3 {[%clk 0:01:56]}  Rxb4 {[%clk 0:00:12]} 31. Nd3 {[%clk 0:01:56]}  Rb3 {[%clk 0:00:12]} 32. Ke2 {[%clk 0:01:51]}  Bxb2 {[%clk 0:00:11]} 33. h4 {[%clk 0:01:50]}  Bg7 {[%clk 0:00:10]} 34. g4 {[%clk 0:01:50]}  h5 {[%clk 0:00:10]} 35. gxh5 {[%clk 0:01:49]}  gxh5 {[%clk 0:00:11]} 36. Rf5 {[%clk 0:01:50]}  Ra3 {[%clk 0:00:06]} 37. Rxh5 {[%clk 0:01:50]}  Ra2+ {[%clk 0:00:07]} 38. Kf3 {[%clk 0:01:49]}  Ra3 {[%clk 0:00:06]} 39. Ke4 {[%clk 0:01:49]}  Ra4+ {[%clk 0:00:06]} 40. Ke3 {[%clk 0:01:48]}  Ra3 {[%clk 0:00:05]} 41. Rd5 {[%clk 0:01:47]}  Ra4 {[%clk 0:00:04]} 42. h5 {[%clk 0:01:47]}  Rh4 {[%clk 0:00:04]} 43. Kf3 {[%clk 0:01:45]}  Kh7 {[%clk 0:00:04]} 44. Kg3 {[%clk 0:01:45]}  Ra4 {[%clk 0:00:04]} 45. Rd7 {[%clk 0:01:43]}  Ra3 {[%clk 0:00:03]} 46. Kg4 {[%clk 0:01:42]}  Ra4+ {[%clk 0:00:02]} 47. Kf5 {[%clk 0:01:42]}  Ra5+ {[%clk 0:00:02]} 48. Kg4 {[%clk 0:01:42]}  Ra4+ {[%clk 0:00:03]} 49. Nf4 {[%clk 0:01:41]}  Bh6 {[%clk 0:00:01]} 50. Rxf7+ {[%clk 0:01:40]}  Kg8 {[%clk 0:00:02]} 51. Rf6 {[%clk 0:01:40]}  Bxf4 {[%clk 0:00:01]} 52. Rxf4 {[%clk 0:01:34]}  Rxf4+ {[%clk 0:00:02]} 53. Kxf4 {[%clk 0:01:35]}  Kh8 {[%clk 0:00:03]} 54. Kg3 {[%clk 0:01:34]}  Kg8 {[%clk 0:00:04]} 55. Kh2 {[%clk 0:01:34]}  Kh8 {[%clk 0:00:05]} 56. Kg2 {[%clk 0:01:34]}  Kh7 {[%clk 0:00:06]} 57. Kf3 {[%clk 0:01:34]}  Kh6 {[%clk 0:00:06]} 58. Kg4 {[%clk 0:01:34]}  Kh7 {[%clk 0:00:07]} 59. Kg5 {[%clk 0:01:33]}  Kh8 {[%clk 0:00:08]} 60. Kf6 {[%clk 0:01:33]}  Kg8 {[%clk 0:00:09]} 61. Kg6 {[%clk 0:01:33]}  Kh8 {[%clk 0:00:10]} 62. Kg5 {[%clk 0:01:33]}  Kg8 {[%clk 0:00:10]} 63. Kg4 {[%clk 0:01:32]}  Kh8 {[%clk 0:00:11]} 64. Kh3 {[%clk 0:01:32]}  Kg8 {[%clk 0:00:12]} 65. Kh2 {[%clk 0:01:32]}  Kh8 {[%clk 0:00:13]} 66. Kg2 {[%clk 0:01:32]}  Kg8 {[%clk 0:00:14]} 67. Kf3 {[%clk 0:01:32]}  Kh8 {[%clk 0:00:15]} 68. Ke3 {[%clk 0:01:32]}  Kh7 {[%clk 0:00:16]} 69. Kf4 {[%clk 0:01:33]}  Kh6 {[%clk 0:00:17]} 70. Kg4 {[%clk 0:01:33]}  Kh7 {[%clk 0:00:18]} 71. Kg5 {[%clk 0:01:33]}  Kh8 {[%clk 0:00:18]} 72. Kh6 {[%clk 0:01:33]}  Kg8 {[%clk 0:00:18]} 73. Kg6 {[%clk 0:01:34]}  Kh8 {[%clk 0:00:19]} 74. h6 {[%clk 0:01:34]}  Kg8 {[%clk 0:00:19]} 75. Kg5 {[%clk 0:01:35]}  Kh8 {[%clk 0:00:19]} 76. Kh5 {[%clk 0:01:35]}  Kg8 {[%clk 0:00:20]} 77. Kh4 {[%clk 0:01:35]}  Kh7 {[%clk 0:00:20]} 78. Kg5 {[%clk 0:01:36]}  Kh8 {[%clk 0:00:21]} 79. Kf5 {[%clk 0:01:36]}  Kg8 {[%clk 0:00:22]} 80. Kf6 {[%clk 0:01:36]}  Kh8 {[%clk 0:00:22]} 81. Kg6 {[%clk 0:01:36]}  Kg8 {[%clk 0:00:23]} 82. Kf5 {[%clk 0:01:35]}  Kh8 {[%clk 0:00:16]} 83. Kg4 {[%clk 0:01:35]}  Kh7 {[%clk 0:00:16]} 84. Kh5 {[%clk 0:01:35]}  Kh8 {[%clk 0:00:16]} 85. Kg6 {[%clk 0:01:34]} 1/2-1/2


[Site "https://www.chess.com"]

[Event "Titled Tuesday Blitz April 18 Early 2023"]
[White "Manon-og, Ramon Jr."]
[Black "Chirivi C, Jenny Astrid"]
[WhiteFideId "5200776"]
[BlackFideId "4403061"]
[WhiteElo "2385"]
[BlackElo "2001"]
[Result "0-1"]
[Round "10"]
[TimeControl "180+2"]
[Date "2023.04.18"]
[WhiteClock "0:00:08"]
[BlackClock "0:00:15"]

1. e4 {[%clk 0:02:54]}  c5 {[%clk 0:02:58]} 2. Nf3 {[%clk 0:02:38]}  e6 {[%clk 0:02:56]} 3. g3 {[%clk 0:02:36]}  d5 {[%clk 0:02:51]} 4. exd5 {[%clk 0:02:33]}  exd5 {[%clk 0:02:51]} 5. d4 {[%clk 0:02:34]}  Nf6 {[%clk 0:02:49]} 6. Bg2 {[%clk 0:02:34]}  Be7 {[%clk 0:02:46]} 7. O-O {[%clk 0:02:31]}  O-O {[%clk 0:02:46]} 8. c3 {[%clk 0:02:30]}  c4 {[%clk 0:02:45]} 9. Bf4 {[%clk 0:02:30]}  Nc6 {[%clk 0:02:44]} 10. Nbd2 {[%clk 0:02:28]}  Bf5 {[%clk 0:02:38]} 11. Re1 {[%clk 0:02:26]}  h6 {[%clk 0:02:36]} 12. Ne5 {[%clk 0:02:26]}  Bd6 {[%clk 0:02:32]} 13. Qf3 {[%clk 0:02:19]}  Bh7 {[%clk 0:02:16]} 14. h4 {[%clk 0:02:10]}  Ne4 {[%clk 0:02:12]} 15. Nxe4 {[%clk 0:01:56]}  Bxe4 {[%clk 0:02:11]} 16. Rxe4 {[%clk 0:01:55]}  dxe4 {[%clk 0:02:10]} 17. Qxe4 {[%clk 0:01:56]}  Bxe5 {[%clk 0:02:06]} 18. dxe5 {[%clk 0:01:55]}  Qd3 {[%clk 0:02:03]} 19. Qd5 {[%clk 0:01:35]}  Rad8 {[%clk 0:01:53]} 20. Qb5 {[%clk 0:01:34]}  Qe2 {[%clk 0:01:46]} 21. Bf1 {[%clk 0:01:28]}  Qf3 {[%clk 0:01:32]} 22. Qxb7 {[%clk 0:01:19]}  Nxe5 {[%clk 0:01:22]} 23. Qxa7 {[%clk 0:01:19]}  Nd3 {[%clk 0:01:15]} 24. Be3 {[%clk 0:01:10]}  Nxb2 {[%clk 0:01:09]} 25. Bd4 {[%clk 0:00:56]}  Nd3 {[%clk 0:01:03]} 26. Rb1 {[%clk 0:00:56]}  Ra8 {[%clk 0:01:02]} 27. Qc7 {[%clk 0:00:42]}  Rxa2 {[%clk 0:01:00]} 28. Qxc4 {[%clk 0:00:40]}  Rxf2 {[%clk 0:00:45]} 29. Qxd3 {[%clk 0:00:35]}  Rg2+ {[%clk 0:00:33]} 30. Kh1 {[%clk 0:00:31]}  Rxg3+ {[%clk 0:00:28]} 31. Qxf3 {[%clk 0:00:27]}  Rxf3 {[%clk 0:00:29]} 32. Bg2 {[%clk 0:00:22]}  Rf4 {[%clk 0:00:28]} 33. Rb4 {[%clk 0:00:18]}  Rxh4+ {[%clk 0:00:28]} 34. Kg1 {[%clk 0:00:19]}  Rf4 {[%clk 0:00:27]} 35. Rb7 {[%clk 0:00:18]}  Re8 {[%clk 0:00:26]} 36. Bd5 {[%clk 0:00:16]}  Re2 {[%clk 0:00:24]} 37. c4 {[%clk 0:00:15]}  Rxd4 {[%clk 0:00:23]} 38. Bxf7+ {[%clk 0:00:13]}  Kh7 {[%clk 0:00:23]} 39. Rb1 {[%clk 0:00:09]}  Re7 {[%clk 0:00:19]} 40. Bd5 {[%clk 0:00:09]}  g6 {[%clk 0:00:19]} 41. Kg2 {[%clk 0:00:07]}  h5 {[%clk 0:00:19]} 42. Kg3 {[%clk 0:00:07]}  Kh6 {[%clk 0:00:19]} 43. Rb6 {[%clk 0:00:07]}  Rd3+ {[%clk 0:00:18]} 44. Kf2 {[%clk 0:00:07]}  h4 {[%clk 0:00:16]} 45. Kg2 {[%clk 0:00:07]}  h3+ {[%clk 0:00:15]} 46. Kh2 {[%clk 0:00:08]}  Kh5 {[%clk 0:00:15]} 0-1


[Site "https://www.chess.com"]

[Event "Titled Tuesday Blitz April 18 Early 2023"]
[White "Flis, Pawel"]
[Black "Szente Varga, Fruzsina"]
[WhiteFideId "1112864"]
[BlackFideId "712264"]
[WhiteElo "1822"]
[BlackElo "1994"]
[Result "0-1"]
[Round "10"]
[TimeControl "180+2"]
[Date "2023.04.18"]
[WhiteClock "0:00:13"]
[BlackClock "0:00:47"]

1. e4 {[%clk 0:03:00]}  Nf6 {[%clk 0:02:59]} 2. e5 {[%clk 0:03:00]}  Nd5 {[%clk 0:02:59]} 3. d4 {[%clk 0:03:01]}  d6 {[%clk 0:02:59]} 4. c4 {[%clk 0:03:01]}  Nb6 {[%clk 0:02:59]} 5. exd6 {[%clk 0:03:01]}  exd6 {[%clk 0:03:00]} 6. Nc3 {[%clk 0:03:01]}  Be7 {[%clk 0:03:01]} 7. Be3 {[%clk 0:02:58]}  O-O {[%clk 0:03:01]} 8. Bd3 {[%clk 0:02:58]}  Nc6 {[%clk 0:03:00]} 9. Nge2 {[%clk 0:02:53]}  Bg4 {[%clk 0:03:00]} 10. O-O {[%clk 0:02:51]}  Bf6 {[%clk 0:03:00]} 11. Qd2 {[%clk 0:02:51]}  Re8 {[%clk 0:02:59]} 12. b3 {[%clk 0:02:49]}  d5 {[%clk 0:02:56]} 13. c5 {[%clk 0:02:48]}  Nc8 {[%clk 0:02:56]} 14. a3 {[%clk 0:02:47]}  a5 {[%clk 0:02:55]} 15. Rab1 {[%clk 0:02:45]}  N8e7 {[%clk 0:02:53]} 16. b4 {[%clk 0:02:42]}  axb4 {[%clk 0:02:53]} 17. axb4 {[%clk 0:02:43]}  Nf5 {[%clk 0:02:52]} 18. b5 {[%clk 0:02:27]}  Ncxd4 {[%clk 0:02:41]} 19. Nxd4 {[%clk 0:02:28]}  Nxd4 {[%clk 0:02:41]} 20. Bxd4 {[%clk 0:02:22]}  Bxd4 {[%clk 0:02:42]} 21. Bxh7+ {[%clk 0:02:21]}  Kxh7 {[%clk 0:02:39]} 22. Qxd4 {[%clk 0:02:22]}  Be6 {[%clk 0:02:33]} 23. Rbd1 {[%clk 0:02:06]}  c6 {[%clk 0:02:28]} 24. Rd3 {[%clk 0:01:37]}  Bf5 {[%clk 0:01:49]} 25. Rg3 {[%clk 0:01:30]}  Bg6 {[%clk 0:01:50]} 26. Rh3+ {[%clk 0:01:22]}  Kg8 {[%clk 0:01:49]} 27. Rd1 {[%clk 0:01:14]}  Ra5 {[%clk 0:01:28]} 28. bxc6 {[%clk 0:01:11]}  bxc6 {[%clk 0:01:29]} 29. Qb4 {[%clk 0:00:40]}  Qa8 {[%clk 0:01:15]} 30. Qh4 {[%clk 0:00:38]}  Kf8 {[%clk 0:01:04]} 31. Qh8+ {[%clk 0:00:35]}  Ke7 {[%clk 0:01:04]} 32. Qxg7 {[%clk 0:00:28]}  Kd7 {[%clk 0:00:59]} 33. Re3 {[%clk 0:00:22]}  Ra1 {[%clk 0:00:47]} 34. Rxe8 {[%clk 0:00:16]}  Rxd1+ {[%clk 0:00:47]} 35. Nxd1 {[%clk 0:00:16]}  Qxe8 {[%clk 0:00:48]} 36. Qd4 {[%clk 0:00:13]}  Qe1# {[%clk 0:00:47]} 0-1


[Site "https://www.chess.com"]

[Event "Titled Tuesday Blitz April 18 Early 2023"]
[White "Fuzesabonyilaci"]
[Black "Sandholm, Klas"]
[BlackFideId "510203"]
[WhiteElo "2330"]
[BlackElo "2141"]
[Result "1-0"]
[Round "10"]
[TimeControl "180+2"]
[Date "2023.04.18"]
[WhiteClock "0:00:17"]
[BlackClock "0:00:01"]

1. e4 {[%clk 0:03:00]}  e5 {[%clk 0:02:59]} 2. Nf3 {[%clk 0:03:00]}  d5 {[%clk 0:02:59]} 3. exd5 {[%clk 0:02:50]}  e4 {[%clk 0:03:00]} 4. Qe2 {[%clk 0:02:50]}  f5 {[%clk 0:03:00]} 5. d3 {[%clk 0:02:50]}  Nf6 {[%clk 0:03:01]} 6. Nc3 {[%clk 0:02:48]}  Bb4 {[%clk 0:03:00]} 7. Bd2 {[%clk 0:02:42]}  O-O {[%clk 0:02:59]} 8. dxe4 {[%clk 0:02:30]}  fxe4 {[%clk 0:02:58]} 9. Nxe4 {[%clk 0:02:28]}  Nxe4 {[%clk 0:02:51]} 10. Bxb4 {[%clk 0:02:28]}  Re8 {[%clk 0:02:51]} 11. O-O-O {[%clk 0:02:21]}  Ng3 {[%clk 0:02:32]} 12. hxg3 {[%clk 0:02:15]}  Rxe2 {[%clk 0:02:30]} 13. Bxe2 {[%clk 0:02:15]}  Bf5 {[%clk 0:02:15]} 14. d6 {[%clk 0:02:08]}  Nc6 {[%clk 0:02:06]} 15. Bc4+ {[%clk 0:02:05]}  Kh8 {[%clk 0:02:06]} 16. dxc7 {[%clk 0:02:00]}  Qxc7 {[%clk 0:02:04]} 17. Bc3 {[%clk 0:01:56]}  a6 {[%clk 0:01:46]} 18. Ng5 {[%clk 0:01:55]}  Na5 {[%clk 0:01:31]} 19. Nf7+ {[%clk 0:01:23]}  Kg8 {[%clk 0:01:30]} 20. Nh6+ {[%clk 0:01:22]}  Kh8 {[%clk 0:01:30]} 21. Nxf5 {[%clk 0:01:22]}  Nxc4 {[%clk 0:01:25]} 22. Nxg7 {[%clk 0:01:21]}  Kg8 {[%clk 0:01:16]} 23. Ne6 {[%clk 0:01:16]}  Qc6 {[%clk 0:01:10]} 24. Nf4 {[%clk 0:01:10]}  Rc8 {[%clk 0:01:02]} 25. Nd5 {[%clk 0:01:06]}  Re8 {[%clk 0:00:23]} 26. Nf6+ {[%clk 0:01:04]}  Kf8 {[%clk 0:00:23]} 27. Rxh7 {[%clk 0:00:52]}  Qxg2 {[%clk 0:00:16]} 28. Nd7+ {[%clk 0:00:44]}  Kg8 {[%clk 0:00:15]} 29. Rg7+ {[%clk 0:00:42]}  Kh8 {[%clk 0:00:14]} 30. Re7+ {[%clk 0:00:41]}  Kg8 {[%clk 0:00:12]} 31. Nf6+ {[%clk 0:00:34]}  Kf8 {[%clk 0:00:08]} 32. Rxe8+ {[%clk 0:00:33]}  Kf7 {[%clk 0:00:09]} 33. Ree1 {[%clk 0:00:21]}  b5 {[%clk 0:00:06]} 34. Ne4 {[%clk 0:00:18]}  a5 {[%clk 0:00:04]} 35. Nd6+ {[%clk 0:00:18]}  Nxd6 {[%clk 0:00:03]} 36. Rxd6 {[%clk 0:00:19]}  Qxf2 {[%clk 0:00:02]} 37. Rdd1 {[%clk 0:00:17]}  b4 {[%clk 0:00:01]} 38. Rf1 {[%clk 0:00:17]} 1-0


[Site "https://www.chess.com"]

[Event "Titled Tuesday Blitz April 18 Early 2023"]
[White "Kriti Mayur Patel"]
[Black "chessjazda"]
[WhiteFideId "35061780"]
[WhiteElo "1306"]
[BlackElo "2322"]
[Result "0-1"]
[Round "10"]
[TimeControl "180+2"]
[Date "2023.04.18"]
[WhiteClock "0:01:37"]
[BlackClock "0:01:30"]

1. e4 {[%clk 0:02:56]}  e6 {[%clk 0:02:55]} 2. d4 {[%clk 0:02:55]}  d5 {[%clk 0:02:54]} 3. Nc3 {[%clk 0:02:54]}  dxe4 {[%clk 0:02:51]} 4. Nxe4 {[%clk 0:02:54]}  Bd7 {[%clk 0:02:51]} 5. Nf3 {[%clk 0:02:53]}  Bc6 {[%clk 0:02:50]} 6. Bd3 {[%clk 0:02:54]}  Nd7 {[%clk 0:02:48]} 7. c3 {[%clk 0:02:54]}  Ngf6 {[%clk 0:02:48]} 8. Nxf6+ {[%clk 0:02:53]}  Nxf6 {[%clk 0:02:47]} 9. O-O {[%clk 0:02:53]}  Bd6 {[%clk 0:02:44]} 10. Re1 {[%clk 0:02:51]}  O-O {[%clk 0:02:42]} 11. Bg5 {[%clk 0:02:51]}  h6 {[%clk 0:02:42]} 12. Bh4 {[%clk 0:02:50]}  Be7 {[%clk 0:02:37]} 13. Ne5 {[%clk 0:02:47]}  Qd5 {[%clk 0:02:32]} 14. Nf3 {[%clk 0:02:39]}  Qh5 {[%clk 0:02:30]} 15. Bg3 {[%clk 0:02:38]}  Bxf3 {[%clk 0:02:29]} 16. Qxf3 {[%clk 0:02:37]}  Qxf3 {[%clk 0:02:29]} 17. gxf3 {[%clk 0:02:38]}  Bd6 {[%clk 0:02:28]} 18. Bc2 {[%clk 0:02:37]}  Rad8 {[%clk 0:02:24]} 19. Be5 {[%clk 0:02:33]}  Nd7 {[%clk 0:02:21]} 20. f4 {[%clk 0:02:31]}  Rfe8 {[%clk 0:02:17]} 21. Re3 {[%clk 0:02:25]}  Nf8 {[%clk 0:02:03]} 22. Rg3 {[%clk 0:02:23]}  g6 {[%clk 0:01:54]} 23. Bf6 {[%clk 0:02:18]}  Be7 {[%clk 0:01:52]} 24. Be5 {[%clk 0:02:15]}  Rd7 {[%clk 0:01:52]} 25. h4 {[%clk 0:02:15]}  f6 {[%clk 0:01:42]} 26. Bxg6 {[%clk 0:01:48]}  Nxg6 {[%clk 0:01:41]} 27. Rxg6+ {[%clk 0:01:49]}  Kf7 {[%clk 0:01:41]} 28. h5 {[%clk 0:01:47]}  fxe5 {[%clk 0:01:39]} 29. fxe5 {[%clk 0:01:47]}  Rg8 {[%clk 0:01:39]} 30. Kh2 {[%clk 0:01:46]}  Rxg6 {[%clk 0:01:38]} 31. hxg6+ {[%clk 0:01:47]}  Kxg6 {[%clk 0:01:39]} 32. Rg1+ {[%clk 0:01:44]}  Kh7 {[%clk 0:01:39]} 33. f4 {[%clk 0:01:41]}  Bd8 {[%clk 0:01:35]} 34. Kh3 {[%clk 0:01:40]}  Rf7 {[%clk 0:01:34]} 35. Kg4 {[%clk 0:01:39]}  Rg7+ {[%clk 0:01:33]} 36. Kh5 {[%clk 0:01:37]}  Rxg1 {[%clk 0:01:32]} 37. f5 {[%clk 0:01:36]}  exf5 {[%clk 0:01:31]} 38. e6 {[%clk 0:01:37]}  Rg5+ {[%clk 0:01:31]} 39. Kh4 {[%clk 0:01:37]}  Rg4+ {[%clk 0:01:30]} 40. Kh5 {[%clk 0:01:37]}  Rh4# {[%clk 0:01:30]} 0-1


[Site "https://www.chess.com"]